[Event "Titled Tuesday Blitz December 20 Early 2022"]
[White "rasmussvane"]
[Black "Oleksandr_Bortnyk"]
[WhiteElo "2949"]
[BlackElo "2984"]
[Result "1-0"]
[Round "11"]
[TimeControl "180+2"]
[Date "2022.12.20"]
[WhiteClock "0:00:07"]
[BlackClock "0:00:09"]

1. Nf3 {[%clk 0:03:00]}  d6 {[%clk 0:02:49]} 2. d4 {[%clk 0:03:00]}  Nf6 {[%clk 0:02:49]} 3. Nc3 {[%clk 0:03:00]}  Nbd7 {[%clk 0:02:49]} 4. e4 {[%clk 0:02:59]}  e5 {[%clk 0:02:49]} 5. Bc4 {[%clk 0:02:59]}  Be7 {[%clk 0:02:49]} 6. a4 {[%clk 0:02:59]}  c6 {[%clk 0:02:49]} 7. O-O {[%clk 0:02:59]}  h6 {[%clk 0:02:50]} 8. Re1 {[%clk 0:02:56]}  Qc7 {[%clk 0:02:50]} 9. Nh4 {[%clk 0:02:50]}  g6 {[%clk 0:02:43]} 10. f4 {[%clk 0:02:30]}  exf4 {[%clk 0:02:35]} 11. Bxf4 {[%clk 0:02:18]}  g5 {[%clk 0:02:35]} 12. e5 {[%clk 0:02:16]}  gxf4 {[%clk 0:02:01]} 13. exd6 {[%clk 0:02:12]}  Qxd6 {[%clk 0:01:50]} 14. Nf5 {[%clk 0:02:12]}  Qb4 {[%clk 0:01:50]} 15. Rxe7+ {[%clk 0:01:47]}  Kd8 {[%clk 0:01:50]} 16. Bb3 {[%clk 0:01:28]}  a5 {[%clk 0:00:36]} 17. Rxf7 {[%clk 0:01:12]}  Kc7 {[%clk 0:00:32]} 18. Qd2 {[%clk 0:01:09]}  Nh5 {[%clk 0:00:25]} 19. Qe2 {[%clk 0:01:05]}  Nf6 {[%clk 0:00:20]} 20. d5 {[%clk 0:00:40]}  Kb6 {[%clk 0:00:16]} 21. dxc6 {[%clk 0:00:38]}  bxc6 {[%clk 0:00:14]} 22. Rd1 {[%clk 0:00:38]}  Qc5+ {[%clk 0:00:11]} 23. Qf2 {[%clk 0:00:27]}  Qxf2+ {[%clk 0:00:10]} 24. Kxf2 {[%clk 0:00:28]}  Ng4+ {[%clk 0:00:11]} 25. Kg1 {[%clk 0:00:28]}  Nde5 {[%clk 0:00:08]} 26. Nd6 {[%clk 0:00:11]}  Nxf7 {[%clk 0:00:08]} 27. Nxf7 {[%clk 0:00:12]}  Rf8 {[%clk 0:00:07]} 28. Rf1 {[%clk 0:00:12]}  Ne3 {[%clk 0:00:04]} 29. Rxf4 {[%clk 0:00:12]}  Ba6 {[%clk 0:00:05]} 30. Rf6 {[%clk 0:00:12]}  Rad8 {[%clk 0:00:04]} 31. h3 {[%clk 0:00:12]}  Rd2 {[%clk 0:00:04]} 32. g4 {[%clk 0:00:05]}  Kc7 {[%clk 0:00:03]} 33. Rxh6 {[%clk 0:00:04]}  Bc4 {[%clk 0:00:02]} 34. Bxc4 {[%clk 0:00:04]}  Nxc4 {[%clk 0:00:03]} 35. Rh7 {[%clk 0:00:04]}  Kb6 {[%clk 0:00:03]} 36. g5 {[%clk 0:00:05]}  Ne3 {[%clk 0:00:03]} 37. h4 {[%clk 0:00:04]}  Rxc2 {[%clk 0:00:03]} 38. Ne4 {[%clk 0:00:05]}  Re8 {[%clk 0:00:03]} 39. Nfd6 {[%clk 0:00:04]}  Rf8 {[%clk 0:00:02]} 40. Nf6 {[%clk 0:00:04]}  Rxb2 {[%clk 0:00:02]} 41. Nde4 {[%clk 0:00:04]}  Rc8 {[%clk 0:00:01]} 42. Nd7+ {[%clk 0:00:04]}  Kc7 {[%clk 0:00:01]} 43. Ndc5+ {[%clk 0:00:04]}  Kb8 {[%clk 0:00:01]} 44. Nd7+ {[%clk 0:00:03]}  Ka8 {[%clk 0:00:01]} 45. Ndf6 {[%clk 0:00:04]}  Nf5 {[%clk 0:00:01]} 46. h5 {[%clk 0:00:03]}  Rd8 {[%clk 0:00:02]} 47. Nd7 {[%clk 0:00:03]}  Rb1+ {[%clk 0:00:02]} 48. Kf2 {[%clk 0:00:03]}  Rb4 {[%clk 0:00:03]} 49. Kf3 {[%clk 0:00:03]}  Nd4+ {[%clk 0:00:02]} 50. Ke3 {[%clk 0:00:03]}  Ne6 {[%clk 0:00:03]} 51. g6 {[%clk 0:00:04]}  Rb3+ {[%clk 0:00:03]} 52. Kf2 {[%clk 0:00:04]}  Rb2+ {[%clk 0:00:03]} 53. Ke3 {[%clk 0:00:04]}  Rb3+ {[%clk 0:00:03]} 54. Kf2 {[%clk 0:00:04]}  Rb4 {[%clk 0:00:04]} 55. Nef6 {[%clk 0:00:04]}  Rxa4 {[%clk 0:00:04]} 56. Re7 {[%clk 0:00:04]}  Nf4 {[%clk 0:00:04]} 57. g7 {[%clk 0:00:04]}  Ra2+ {[%clk 0:00:03]} 58. Kf3 {[%clk 0:00:04]}  Nxh5 {[%clk 0:00:03]} 59. Nxh5 {[%clk 0:00:04]}  Rg8 {[%clk 0:00:03]} 60. Nhf6 {[%clk 0:00:04]}  Rxg7 {[%clk 0:00:03]} 61. Rxg7 {[%clk 0:00:05]}  Kb7 {[%clk 0:00:03]} 62. Nc5+ {[%clk 0:00:05]}  Kb6 {[%clk 0:00:04]} 63. Nfe4 {[%clk 0:00:06]}  Kb5 {[%clk 0:00:04]} 64. Rb7+ {[%clk 0:00:06]}  Kc4 {[%clk 0:00:05]} 65. Ke3 {[%clk 0:00:03]}  a4 {[%clk 0:00:05]} 66. Nd3 {[%clk 0:00:03]}  Ra3 {[%clk 0:00:05]} 67. Nd2+ {[%clk 0:00:03]}  Kd5 {[%clk 0:00:04]} 68. Rd7+ {[%clk 0:00:03]}  Ke6 {[%clk 0:00:04]} 69. Rd8 {[%clk 0:00:03]}  c5 {[%clk 0:00:05]} 70. Nc4 {[%clk 0:00:04]}  Rc3 {[%clk 0:00:05]} 71. Ne5 {[%clk 0:00:02]}  c4 {[%clk 0:00:06]} 72. Kd4 {[%clk 0:00:02]}  Rc2 {[%clk 0:00:03]} 73. Nc5+ {[%clk 0:00:03]}  Ke7 {[%clk 0:00:03]} 74. Nc6+ {[%clk 0:00:03]}  Kf6 {[%clk 0:00:03]} 75. Rf8+ {[%clk 0:00:04]}  Kg5 {[%clk 0:00:03]} 76. Ne5 {[%clk 0:00:04]}  Rd2+ {[%clk 0:00:03]} 77. Kxc4 {[%clk 0:00:04]}  Rc2+ {[%clk 0:00:03]} 78. Kd4 {[%clk 0:00:04]}  a3 {[%clk 0:00:04]} 79. Ne4+ {[%clk 0:00:04]}  Kh6 {[%clk 0:00:04]} 80. Ra8 {[%clk 0:00:05]}  a2 {[%clk 0:00:04]} 81. Nc3 {[%clk 0:00:05]}  Rd2+ {[%clk 0:00:04]} 82. Nd3 {[%clk 0:00:06]}  Rg2 {[%clk 0:00:04]} 83. Nxa2 {[%clk 0:00:06]}  Rg4+ {[%clk 0:00:04]} 84. Kc3 {[%clk 0:00:07]}  Kh7 {[%clk 0:00:04]} 85. Nab4 {[%clk 0:00:07]}  Rg8 {[%clk 0:00:05]} 86. Ra7+ {[%clk 0:00:07]}  Rg7 {[%clk 0:00:06]} 87. Ra1 {[%clk 0:00:08]}  Rc7+ {[%clk 0:00:06]} 88. Kd4 {[%clk 0:00:07]}  Rg7 {[%clk 0:00:07]} 89. Nd5 {[%clk 0:00:08]}  Rg4+ {[%clk 0:00:08]} 90. Kc5 {[%clk 0:00:08]}  Rg5 {[%clk 0:00:08]} 91. Re1 {[%clk 0:00:07]}  Kh6 {[%clk 0:00:08]} 92. Ne5 {[%clk 0:00:07]}  Rf5 {[%clk 0:00:08]} 93. Kd6 {[%clk 0:00:07]}  Rf8 {[%clk 0:00:08]} 94. Ke6 {[%clk 0:00:07]}  Re8+ {[%clk 0:00:08]} 95. Ne7 {[%clk 0:00:07]}  Kg5 {[%clk 0:00:08]} 96. Rf1 {[%clk 0:00:08]}  Kh4 {[%clk 0:00:08]} 97. Rg1 {[%clk 0:00:05]}  Kh3 {[%clk 0:00:08]} 98. Ng6 {[%clk 0:00:05]}  Kh2 {[%clk 0:00:09]} 99. Rg5 {[%clk 0:00:05]}  Ra8 {[%clk 0:00:09]} 100. Kf5 {[%clk 0:00:05]}  Ra5+ {[%clk 0:00:09]} 101. Ne5 {[%clk 0:00:06]}  Kh3 {[%clk 0:00:10]} 102. Ng6 {[%clk 0:00:06]}  Kh2 {[%clk 0:00:10]} 103. Nf4 {[%clk 0:00:06]}  Rb5 {[%clk 0:00:10]} 104. Rg7 {[%clk 0:00:05]}  Ra5 {[%clk 0:00:10]} 105. Ke4 {[%clk 0:00:06]}  Ra4+ {[%clk 0:00:10]} 106. Ke3 {[%clk 0:00:06]}  Ra3+ {[%clk 0:00:09]} 107. Ned3 {[%clk 0:00:07]}  Rb3 {[%clk 0:00:09]} 108. Kf3 {[%clk 0:00:07]}  Ra3 {[%clk 0:00:09]} 109. Rh7+ {[%clk 0:00:07]}  Kg1 {[%clk 0:00:09]} 110. Ne2+ {[%clk 0:00:07]} 1-0


[Site "https://www.chess.com"]

[Event "Titled Tuesday Blitz December 20 Early 2022"]
[White "szachuspl"]
[Black "Lion-Al-Messi"]
[WhiteElo "2642"]
[BlackElo "2520"]
[Result "1-0"]
[Round "11"]
[TimeControl "180+2"]
[Date "2022.12.20"]
[WhiteClock "0:00:22"]
[BlackClock "0:00:03"]

1. d4 {[%clk 0:03:00]}  Nf6 {[%clk 0:02:58]} 2. c4 {[%clk 0:02:59]}  g6 {[%clk 0:02:57]} 3. Nc3 {[%clk 0:02:59]}  d5 {[%clk 0:02:54]} 4. Nf3 {[%clk 0:02:58]}  Bg7 {[%clk 0:02:53]} 5. g3 {[%clk 0:02:58]}  O-O {[%clk 0:02:47]} 6. Bg2 {[%clk 0:02:58]}  c6 {[%clk 0:02:35]} 7. O-O {[%clk 0:02:56]}  Bf5 {[%clk 0:02:31]} 8. b3 {[%clk 0:02:51]}  Nbd7 {[%clk 0:02:28]} 9. Bb2 {[%clk 0:02:51]}  Ne4 {[%clk 0:02:27]} 10. cxd5 {[%clk 0:02:38]}  Nxc3 {[%clk 0:02:26]} 11. Bxc3 {[%clk 0:02:38]}  cxd5 {[%clk 0:02:27]} 12. Ne5 {[%clk 0:02:31]}  Nxe5 {[%clk 0:02:25]} 13. dxe5 {[%clk 0:02:32]}  Rc8 {[%clk 0:02:25]} 14. Bd4 {[%clk 0:02:31]}  Qa5 {[%clk 0:02:22]} 15. e3 {[%clk 0:02:26]}  Rc2 {[%clk 0:02:12]} 16. a3 {[%clk 0:02:22]}  Rfc8 {[%clk 0:01:48]} 17. b4 {[%clk 0:02:21]}  Qb5 {[%clk 0:01:31]} 18. Re1 {[%clk 0:02:18]}  Be4 {[%clk 0:01:26]} 19. Bf1 {[%clk 0:02:16]}  Qd7 {[%clk 0:01:20]} 20. Bd3 {[%clk 0:02:05]}  Bxd3 {[%clk 0:01:19]} 21. Qxd3 {[%clk 0:02:05]}  Qf5 {[%clk 0:01:15]} 22. Qxf5 {[%clk 0:01:53]}  gxf5 {[%clk 0:01:16]} 23. Red1 {[%clk 0:01:52]}  e6 {[%clk 0:01:15]} 24. b5 {[%clk 0:01:48]}  a6 {[%clk 0:01:11]} 25. a4 {[%clk 0:01:47]}  h5 {[%clk 0:00:57]} 26. Kf1 {[%clk 0:01:17]}  Kh7 {[%clk 0:00:56]} 27. Ke1 {[%clk 0:01:17]}  Kg6 {[%clk 0:00:56]} 28. Rd2 {[%clk 0:01:11]}  h4 {[%clk 0:00:55]} 29. Rxc2 {[%clk 0:01:02]}  Rxc2 {[%clk 0:00:56]} 30. gxh4 {[%clk 0:00:59]}  Kh5 {[%clk 0:00:55]} 31. Rb1 {[%clk 0:00:59]}  Kg4 {[%clk 0:00:41]} 32. bxa6 {[%clk 0:00:50]}  bxa6 {[%clk 0:00:42]} 33. Rb7 {[%clk 0:00:49]}  Bf8 {[%clk 0:00:39]} 34. f4 {[%clk 0:00:38]}  Rxh2 {[%clk 0:00:33]} 35. Rxf7 {[%clk 0:00:37]}  Bb4+ {[%clk 0:00:33]} 36. Kd1 {[%clk 0:00:38]}  Kf3 {[%clk 0:00:31]} 37. Rf6 {[%clk 0:00:36]}  Ke4 {[%clk 0:00:30]} 38. Rxe6 {[%clk 0:00:33]}  Kd3 {[%clk 0:00:26]} 39. Kc1 {[%clk 0:00:33]}  Rxh4 {[%clk 0:00:17]} 40. Rxa6 {[%clk 0:00:32]}  Bd2+ {[%clk 0:00:16]} 41. Kb2 {[%clk 0:00:30]}  Rh2 {[%clk 0:00:10]} 42. Kb3 {[%clk 0:00:28]}  Bxe3 {[%clk 0:00:09]} 43. Bb2 {[%clk 0:00:22]}  Bxf4 {[%clk 0:00:09]} 44. e6 {[%clk 0:00:22]}  Re2 {[%clk 0:00:09]} 45. Rc6 {[%clk 0:00:21]}  Bg5 {[%clk 0:00:07]} 46. a5 {[%clk 0:00:21]}  f4 {[%clk 0:00:04]} 47. a6 {[%clk 0:00:22]}  Rh2 {[%clk 0:00:03]} 48. a7 {[%clk 0:00:22]} 1-0


[Site "https://www.chess.com"]